fUST/lending_fUST_20240813
["ID","MTS","AMOUNT","RATE_DAILY","PERIOD"]
[334745462,1723530645962,-988.28,0.00014246,2]
[334745463,1723530645972,-913.14,0.00014246,2]
[334745464,1723530645983,-539.99589051,0.00014246,2]
[334745465,1723530645994,-1468.39,0.00014246,2]
[334745466,1723530646003,-2441.51,0.00014246,2]
[334745467,1723530646014,-500.0,0.00014246,2]
[334745468,1723530646025,-758.02,0.00014246,2]
[334745469,1723530646036,-500.0,0.00014246,2]
[334745470,1723530646046,-506.10342775,0.00014246,2]
[334745471,1723530646056,-522.540986,0.00014247,2]
[334745472,1723530646066,-307.5532993,0.00014248,2]
[334745473,1723530646075,-500.0,0.0001452,2]
[334745474,1723530646086,-1577.7,0.0001452,2]
[334745475,1723530646096,-501.99,0.0001452,2]
[334745476,1723530646107,-507.91,0.0001452,2]
[334745477,1723530646118,-500.0,0.0001452,2]
[334745478,1723530646237,-500.0,0.0001452,2]
[334745479,1723530646247,-1093.74,0.0001452,2]
[334745480,1723530646257,-500.0,0.0001452,2]
[334745481,1723530646267,-500.0,0.0001452,2]
[334745482,1723530646276,-500.0,0.0001452,2]
[334745483,1723530646287,-500.0,0.0001452,2]
[334745484,1723530646297,-500.0,0.0001452,2]
[334745485,1723530646306,-500.0,0.0001452,2]
[334745486,1723530646316,-572.28,0.0001452,2]
[334745487,1723530646326,-500.0,0.0001452,2]
[334745488,1723530646335,-500.0,0.0001452,2]
[334745489,1723530646345,-500.0,0.0001452,2]
[334745490,1723530646355,-500.0,0.0001452,2]
[334745491,1723530646365,-500.0,0.0001452,2]
[334745492,1723530646375,-500.0,0.0001452,2]
[334745493,1723530646385,-675.36,0.0001452,2]
[334745494,1723530646395,-500.0,0.0001452,2]
[334745495,1723530646404,-500.0,0.0001452,2]
[334745496,1723530646414,-484.55303173,0.0001452,2]
[334745501,1723530648120,-500.0,0.00013698,2]
[334745502,1723530648130,-500.0,0.00013698,2]
[334745503,1723530648139,-500.0,0.00013698,2]
[334745504,1723530648148,-505.89185005,0.00013698,2]
[334745505,1723530648157,-500.0,0.00013698,2]
[334745506,1723530648167,-500.0,0.00013698,2]
[334745507,1723530648176,-484.493011,0.00013698,2]
[334745508,1723530648187,-15.506989,0.00013698,2]
[334745509,1723530648197,-1058.59610039,0.00013698,2]
[334745525,1723531636320,-154.74467129,9.509e-05,2]
[334745526,1723531636342,-300.0,9.998e-05,2]
[334745527,1723531636362,-154.74467129,9.999e-05,2]
[334745528,1723531636384,-522.64205496,9.999e-05,2]
[334745529,1723531636404,-223.51174955,9.999e-05,2]
[334745531,1723531747182,-3288.37206183,9.899e-05,2]
[334745532,1723531747204,-300.0,9.998e-05,2]
[334745533,1723531747231,-556.05078244,9.999e-05,2]
[334745534,1723531747251,-543.67907992,9.999e-05,2]
[334745535,1723531747273,-727.95297145,9.999e-05,2]
[334745536,1723531747294,-319.99782942,9.999e-05,2]
[334745537,1723531747315,-256.16671508,9.999e-05,2]
[334745538,1723531747335,-189.91186464,9.999e-05,2]
[334745539,1723531747354,-156.92027342,9.999e-05,2]
[334745540,1723531747373,-155.13782132,9.999e-05,2]
[334745541,1723531747393,-180.96204521,9.999e-05,2]
[334745542,1723531747415,-201.59267893,9.999e-05,2]
[334745543,1723531747435,-182.11697513,9.999e-05,2]
[334745544,1723531747456,-183.31414419,9.999e-05,2]
[334745545,1723531747478,-158.63524894,9.999e-05,2]
[334745546,1723531747498,-156.91451497,9.999e-05,2]
[334745547,1723531747520,-413.41235077,0.0001,2]
[334745548,1723531747545,-286.65684939,0.0001,2]
[334745549,1723531747568,-900.42156669,0.0001116,2]
[334745550,1723531750382,193.53718372,9.999e-05,2]
[334745551,1723531758579,273.37336231,9.9e-05,2]
[334745552,1723531769120,-23979.57843331,0.0001116,2]
[334745553,1723531769144,-164.573352,0.00011323,2]
[334745554,1723531769168,-164.573352,0.00011421,2]
[334745555,1723531769192,-164.573352,0.0001152,2]
[334745556,1723531769216,-164.573352,0.00011618,2]
[334745557,1723531769242,-164.573352,0.00011716,2]
[334745558,1723531769265,-164.573352,0.00011815,2]
[334745559,1723531769290,-164.573352,0.00011913,2]
[334745560,1723531769312,-154.76012181,0.0001212,2]
[334745561,1723531774406,273.37336231,9.9e-05,2]
[334745563,1723531788105,156.82771001,0.0001212,2]
[334745564,1723531789924,273.37336231,9.9e-05,2]
[334745565,1723531792170,413.41235077,0.0001212,2]
[334745568,1723531798280,158.63524894,0.0001212,2]
[334745569,1723531802341,183.31414419,0.0001212,2]
[334745574,1723531804388,158.63524894,0.0001212,2]
[334745575,1723531805829,273.37336231,9.9e-05,2]
[334745576,1723531808261,324.67016307,0.0001212,2]
[334745577,1723531812785,809.10695268,0.0001212,2]
[334745578,1723531821553,56.75639629,9.999e-05,2]
[334745579,1723531821577,252.76384733,9.999e-05,2]
[334745580,1723531822264,273.37336231,9.9e-05,2]
[334745619,1723531832687,-1004.25000015,0.000129,2]
[334745647,1723531837627,44.83592841,9.9e-05,2]
[334745760,1723531839392,-228.5374339,9.9e-05,2]
[334745762,1723531839402,-2660.68388666,0.000129,2]
[334745764,1723531839412,-408.98189212,0.00013,2]
[334745766,1723531839424,-2000.0,0.00013588,2]
[334745769,1723531839434,-1516.26094254,0.00013598,2]
[334745770,1723531839443,-784.59991661,0.00013598,2]
[334745774,1723531839455,-18296.47162563,0.000136,2]
[334745874,1723531840600,-2448.96349972,0.000136,2]
[334745880,1723531840662,-25899.84485071,0.000136,2]
[334745882,1723531840671,-784.59991658,0.00013667,2]
[334745884,1723531840682,-200.0,0.00013673,2]
[334745886,1723531840693,-200.0,0.00013673,2]
[334745887,1723531840703,-200.0,0.00013673,2]
[334745889,1723531840714,-200.0,0.00013673,2]
[334745891,1723531840723,-9380.06634746,0.00013678,2]
[334745892,1723531840733,-297255.85665349,0.00013678,2]
[334745951,1723531843566,-2443.84952322,0.00013678,2]
[334745990,1723532755845,3624.3158752,8.503e-05,2]
[334745992,1723532813112,1416.77157837,8.503e-05,2]
[334745993,1723532817710,223.78071941,8.503e-05,2]
[334745994,1723532820081,834.32224871,8.503e-05,2]
[334745995,1723532826175,-852.16300677,8.984e-05,2]
[334745996,1723532827855,3789.92883134,8.503e-05,2]
[334745997,1723532829089,706.12758092,8.503e-05,2]
[334745998,1723532836706,5227.0573368,8.494e-05,2]
[334745999,1723532838817,443.07291966,8.503e-05,2]
[334746000,1723532842989,214.35678514,8.503e-05,2]
[334746001,1723532846276,4748.13065468,8.503e-05,2]
[334746002,1723532856985,158.63524894,8.503e-05,2]
[334746003,1723532859767,220.01550223,8.503e-05,2]
[334746004,1723532868761,1413.68526537,8.503e-05,2]
[334746005,1723532870380,451.89339907,8.503e-05,2]
[334746006,1723532877499,510.06692442,8.503e-05,2]
[334746007,1723532883753,1413.68526537,8.503e-05,2]
[334746008,1723532911011,3728.4697614,8.587e-05,2]
[334746010,1723532916572,752.58195885,8.503e-05,2]
[334746011,1723532923068,22485.40372142,8.494e-05,2]
[334746012,1723532945101,-2414.59627858,8.494e-05,2]
[334746013,1723532945124,-2276.63750142,8.984e-05,2]
[334746014,1723532945147,-250.0,9.122e-05,2]
[334746015,1723532945171,-250.0,9.147e-05,2]
[334746016,1723532945194,-250.0,9.172e-05,2]
[334746017,1723532945217,-250.0,9.197e-05,2]
[334746018,1723532945240,-250.0,9.222e-05,2]
[334746019,1723532945263,-109.96070736,9.247e-05,2]
[334746020,1723532959113,-158.63524894,8.503e-05,2]
[334746021,1723532959134,-6631.34806306,8.503e-05,2]
[334746023,1723532973098,-9674.21722192,8.503e-05,2]
[334746024,1723532973120,-873.7485431,8.503e-05,2]
[334746025,1723532973146,-140.03929264,9.247e-05,2]
[334746026,1723532973171,-250.0,9.272e-05,2]
[334746027,1723532973192,-250.0,9.297e-05,2]
[334746028,1723532973215,-250.0,9.322e-05,2]
[334746029,1723532973240,-250.0,9.347e-05,2]
[334746030,1723532973262,-250.0,9.372e-05,2]
[334746031,1723532973284,-250.0,9.397e-05,2]
[334746032,1723532973306,-250.0,9.422e-05,2]
[334746033,1723532973328,-250.0,9.447e-05,2]
[334746034,1723532973350,-250.0,9.472e-05,2]
[334746035,1723532973373,-250.0,9.497e-05,2]
[334746036,1723532973395,-250.0,9.522e-05,2]
[334746037,1723532973417,-250.0,9.547e-05,2]
[334746038,1723532973440,-250.0,9.572e-05,2]
[334746039,1723532973464,-250.0,9.597e-05,2]
[334746040,1723532973485,-191.86990472,9.799e-05,2]
[334746041,1723532973508,-300.0,9.997e-05,2]
[334746042,1723532973530,-300.0,9.997e-05,2]
[334746043,1723532973553,-154.76012181,9.999e-05,2]
[334746044,1723532973576,-331.09766063,9.999e-05,2]
[334746045,1723532973599,-230.64760299,9.999e-05,2]
[334746046,1723532973621,-309.48934258,9.999e-05,2]
[334746047,1723532973642,-346.25826434,9.999e-05,2]
[334746048,1723532973664,-653.10115654,9.999e-05,2]
[334746049,1723532973685,-809.10695268,9.999e-05,2]
[334746050,1723532973708,-850.13586547,9.999e-05,2]
[334746051,1723532973731,-154.79875236,9.999e-05,2]
[334746052,1723532973753,-694.71379029,9.999e-05,2]
[334746053,1723532973777,-271.42971182,9.999e-05,2]
[334746054,1723532973800,-218.55160021,9.999e-05,2]
[334746055,1723532973822,-543.67907992,9.999e-05,2]
[334746056,1723532973844,-506.42477862,9.999e-05,2]
[334746057,1723532973865,-161.60912248,9.999e-05,2]
[334746058,1723532973886,-154.76012181,9.999e-05,2]
[334746059,1723532973908,-247.70674638,9.999e-05,2]
[334746060,1723532973929,-214.27159543,9.999e-05,2]
[334746061,1723532973951,-309.52019421,9.999e-05,2]
[334746062,1723532973971,-182.85284052,9.999e-05,2]
[334746063,1723532973993,-242.1379875,9.999e-05,2]
[334746064,1723532974013,-309.48934258,0.0001,2]
[334746065,1723532974035,-413.41235077,0.0001,2]
[334746066,1723532974057,-288.02845211,0.0001,2]
[334746067,1723532998878,155.33154114,9.999e-05,2]
[334746068,1723533002731,462.67468089,8.503e-05,2]
[334746101,1723533032821,-158.63524894,0.00010306,2]
[334746102,1723533032831,-155.6631912,0.00010306,2]
[334746103,1723533032841,-579.2790319,0.00010574,2]
[334746104,1723533032850,-195.039736,0.00010576,2]
[334746105,1723533032860,-195.039736,0.00010602,2]
[334746106,1723533032869,-195.039736,0.00010629,2]
[334746107,1723533032880,-300.0,0.00010958,2]
[334746108,1723533032890,-340.2144971,0.00010959,2]
[334746109,1723533032904,-420.0,0.00012054,2]
[334746110,1723533032914,-154.76012181,0.00012119,2]
[334746111,1723533032923,-5006.79934225,0.000129,2]
[334746112,1723533032933,-658.9597,0.00012932,2]
[334746113,1723533032943,-307.226752,0.00012932,2]
[334746114,1723533032953,-5006.79934222,0.0001302,2]
[334746115,1723533032964,-587.0,0.00013259,2]
[334746116,1723533032974,-294.7678211,0.00013288,2]
[334746117,1723533032983,-593.2709273,0.00013288,2]
[334746118,1723533032993,-488.3158605,0.00013288,2]
[334746119,1723533033004,-293.9556653,0.00013288,2]
[334746120,1723533033015,-315.1950708,0.00013288,2]
[334746121,1723533033024,-5323.40502986,0.0001341,2]
[334746122,1723533033034,-211.20356583,0.00013479,2]
[334746123,1723533033044,-211.20356581,0.00013539,2]
[334746124,1723533033053,-1456.70572682,0.00013573,2]
[334746125,1723533033063,-269.59474215,0.00013577,2]
[334746126,1723533033072,-5978.92558911,0.00013578,2]
[334746162,1723533038969,-278.61391398,0.00010306,2]
[334746164,1723533038979,-81757.91608399,0.00013578,2]
[334746166,1723533038989,-1456.70572678,0.00013579,2]
[334746167,1723533038998,-1456.70572678,0.00013586,2]
[334746168,1723533039008,-22492.10557514,0.00013588,2]
[334746169,1723533039018,-1456.70572678,0.00013592,2]
[334746170,1723533039029,-1456.70572678,0.00013598,2]
[334746171,1723533039043,-1533.1082863,0.00013598,2]
[334746172,1723533039054,-211.20356581,0.00013598,2]
[334746173,1723533039063,-4435.686834,0.00013598,2]
[334746174,1723533039073,-155.78099207,0.000136,2]
[334746175,1723533039083,-150.112236,0.000136,2]
[334746176,1723533039092,-200.0,0.00013673,2]
[334746177,1723533039101,-200.0,0.00013673,2]
[334746178,1723533039111,-200.0,0.00013673,2]
[334746179,1723533039122,-200.0,0.00013673,2]
[334746180,1723533039132,-200.0,0.00013673,2]
[334746181,1723533039141,-200.0,0.00013673,2]
[334746182,1723533039152,-1670.74719108,0.00013678,2]
[334746183,1723533039161,-309.18067122,0.00013678,2]
[334746184,1723533039170,-8229.74618501,0.00013678,2]
[334746185,1723533039179,-155.52464364,0.00013678,2]
[334746186,1723533039189,-1107.51705497,0.00013687,2]
[334746187,1723533039199,-4690.03317373,0.00013688,2]
[334746188,1723533039208,-350947.366692,0.00013688,2]
[334746189,1723533039218,-500.0,0.00013698,2]
[334746190,1723533039227,-238.38461239,0.00013698,2]
[334746191,1723533039236,-500.0,0.00013698,2]
[334746192,1723533039245,-500.0,0.00013698,2]
[334746193,1723533039255,-500.0,0.00013698,2]
[334746194,1723533039265,-500.0,0.00013698,2]
[334746195,1723533039275,-500.0,0.00013698,2]
[334746196,1723533039284,-500.0,0.00013698,2]
[334746197,1723533039293,-500.0,0.00013698,2]
[334746198,1723533039303,-500.0,0.00013698,2]
[334746199,1723533039313,-476.38688196,0.00013698,2]
[334746200,1723533039322,-500.0,0.00013698,2]
[334746201,1723533039332,-500.0,0.00013698,2]
[334746202,1723533039341,-500.0,0.00013698,2]
[334746203,1723533039350,-500.0,0.00013698,2]
[334746204,1723533039359,-500.0,0.00013698,2]
[334746205,1723533039368,-500.0,0.00013698,2]
[334746206,1723533039377,-500.0,0.00013698,2]
[334746207,1723533039387,-500.0,0.00013698,2]
[334746208,1723533039396,-500.0,0.00013698,2]
[334746209,1723533039406,-250.0,0.00013698,2]
[334746210,1723533039416,-509.77033415,0.00013698,2]
[334746211,1723533039425,-601.99,0.00013698,2]
[334746212,1723533039435,-500.0,0.00013698,2]
[334746213,1723533039445,-500.0,0.00013698,2]
[334746214,1723533039454,-500.0,0.00013698,2]
[334746215,1723533039464,-500.0,0.00013698,2]
[334746216,1723533039473,-500.0,0.00013698,2]
[334746217,1723533039482,-500.0,0.00013698,2]
[334746218,1723533039492,-500.0,0.00013698,2]
[334746219,1723533039501,-500.0,0.00013698,2]
[334746220,1723533039510,-500.0,0.00013698,2]
[334746221,1723533039520,-500.0,0.00013698,2]
[334746222,1723533039530,-778.27,0.00013698,2]
[334746223,1723533039540,-500.0,0.00013698,2]
[334746224,1723533039550,-503.10120113,0.00013698,2]
[334746225,1723533039560,-500.0,0.00013698,2]
[334746226,1723533039569,-500.0,0.00013698,2]
[334746227,1723533039579,-500.0,0.00013698,2]
[334746228,1723533039588,-500.0,0.00013698,2]
[334746229,1723533039597,-500.0,0.00013698,2]
[334746230,1723533039607,-500.0,0.00013698,2]
[334746231,1723533039617,-500.0,0.00013698,2]
[334746232,1723533039626,-500.0,0.00013698,2]
[334746233,1723533039635,-500.0,0.00013698,2]
[334746234,1723533039645,-500.0,0.00013698,2]
[334746235,1723533039655,-500.0,0.00013698,2]
[334746236,1723533039665,-500.0,0.00013698,2]
[334746237,1723533039674,-500.0,0.00013698,2]
[334746238,1723533039684,-500.0,0.00013698,2]
[334746239,1723533039694,-500.0,0.00013698,2]
[334746240,1723533039703,-355.91,0.00013698,2]
[334746241,1723533039712,-500.0,0.00013698,2]
[334746242,1723533039723,-506.37693255,0.00013698,2]
[334746243,1723533039732,-500.0,0.00013698,2]
[334746244,1723533039742,-500.0,0.00013698,2]
[334746245,1723533039751,-555.29638205,0.00013698,2]
[334746246,1723533039760,-507.02549008,0.00013698,2]
[334746247,1723533039770,-500.0,0.00013698,2]
[334746248,1723533039779,-505.59341651,0.00013698,2]
[334746249,1723533039791,-561.5535722,0.00013698,2]
[334746250,1723533039800,-506.33954523,0.00013698,2]
[334746251,1723533039809,-500.0,0.00013698,2]
[334746252,1723533039819,-505.23657201,0.00013698,2]
[334746253,1723533039829,-507.10673943,0.00013698,2]
[334746254,1723533039838,-504.46577119,0.00013698,2]
[334746255,1723533039848,-505.99767687,0.00013698,2]
[334746256,1723533039858,-359.64442419,0.00013698,2]
[334746260,1723533040885,-140.35557581,0.00013698,2]
[334746261,1723533040896,-500.0,0.00013698,2]
[334746262,1723533040911,-327.2198573,0.00013698,2]
[334746263,1723533040923,-500.0,0.00013698,2]
[334746264,1723533040939,-500.0,0.00013698,2]
[334746265,1723533040954,-527.41057258,0.00013698,2]
[334746266,1723533040965,-442.59706221,0.00013698,2]
[334746267,1723533040977,-500.0,0.00013698,2]
[334746268,1723533040988,-492.82389326,0.00013698,2]
[334746269,1723533041000,-502.53330438,0.00013698,2]
[334746270,1723533041012,-515.89106309,0.00013698,2]
[334746271,1723533041024,-500.0,0.00013698,2]
[334746272,1723533041035,-503.93061823,0.00013698,2]
[334746273,1723533041047,-826.25,0.00013698,2]
[334746274,1723533041057,-507.12995694,0.00013698,2]
[334746275,1723533041067,-500.0,0.00013698,2]
[334746276,1723533041078,-500.0,0.00013698,2]
[334746277,1723533041089,-500.0,0.00013698,2]
[334746278,1723533041101,-500.0,0.00013698,2]
[334746279,1723533041113,-500.0,0.00013698,2]
[334746280,1723533041124,-500.0,0.00013698,2]
[334746281,1723533041136,-500.0,0.00013698,2]
[334746282,1723533041148,-503.6395211,0.00013698,2]
[334746283,1723533041161,-500.0,0.00013698,2]
[334746284,1723533041175,-500.0,0.00013698,2]
[334746285,1723533041188,-504.83601221,0.00013698,2]
[334746286,1723533041201,-500.0,0.00013698,2]
[334746287,1723533041213,-500.0,0.00013698,2]
[334746288,1723533041224,-151.0,0.00013698,2]
[334746289,1723533041236,-500.0,0.00013698,2]
[334746290,1723533041248,-536.88,0.00013698,2]
[334746291,1723533041259,-500.41746684,0.00013698,2]
[334746292,1723533041270,-500.0,0.00013698,2]
[334746293,1723533041282,-500.0,0.00013698,2]
[334746294,1723533041294,-151.0,0.00013698,2]
[334746295,1723533041307,-507.13052992,0.00013698,2]
[334746296,1723533041319,-504.93496476,0.00013698,2]
[334746297,1723533041329,-505.80045931,0.00013698,2]
[334746298,1723533041342,-500.0,0.00013698,2]
[334746299,1723533041354,-150.36652279,0.00013698,2]
[334746300,1723533041367,-501.41158025,0.00013698,2]
[334746301,1723533041378,-500.0,0.00013698,2]
[334746302,1723533041388,-500.0,0.00013698,2]
[334746303,1723533041398,-151.0,0.00013698,2]
[334746304,1723533041409,-500.0,0.00013698,2]
[334746305,1723533041419,-507.20011329,0.00013698,2]
[334746306,1723533041430,-504.48336683,0.00013698,2]
[334746307,1723533041441,-505.71208401,0.00013698,2]
[334746308,1723533041452,-500.0,0.00013698,2]
[334746309,1723533041464,-507.5474858,0.00013698,2]
[334746310,1723533041475,-500.0,0.00013698,2]
[334746311,1723533041485,-500.0,0.00013698,2]
[334746312,1723533041495,-505.36064693,0.00013698,2]
[334746313,1723533041507,-503.78290479,0.00013698,2]
[334746314,1723533041518,-151.0,0.00013698,2]
[334746315,1723533041529,-500.0,0.00013698,2]
[334746316,1723533041540,-500.0,0.00013698,2]
[334746317,1723533041550,-500.0,0.00013698,2]
[334746318,1723533041561,-506.3500057,0.00013698,2]
[334746319,1723533041571,-506.45694896,0.00013698,2]
[334746320,1723533041582,-289.671765,0.00013698,2]
[334746321,1723533041593,-500.0,0.00013698,2]
[334746322,1723533041603,-500.0,0.00013698,2]
[334746323,1723533041614,-500.0,0.00013698,2]
[334746324,1723533041626,-151.0,0.00013698,2]
[334746325,1723533041637,-1832.91,0.00013698,2]
[334746326,1723533041647,-557.93,0.00013698,2]
[334746327,1723533041660,-500.0,0.00013698,2]
[334746328,1723533041671,-578.55,0.00013698,2]
[334746329,1723533041682,-504.932046,0.00013698,2]
[334746330,1723533041692,-500.0,0.00013698,2]
[334746331,1723533041703,-542.42,0.00013698,2]
[334746332,1723533041714,-590.55,0.00013698,2]
[334746333,1723533041724,-500.0,0.00013698,2]
[334746334,1723533041735,-537.79,0.00013698,2]
[334746335,1723533041746,-500.0,0.00013698,2]
[334746336,1723533041757,-504.93221974,0.00013698,2]
[334746337,1723533041767,-500.0,0.00013698,2]
[334746338,1723533041778,-500.0,0.00013698,2]
[334746339,1723533041790,-500.0,0.00013698,2]
[334746340,1723533041802,-500.0,0.00013698,2]
[334746341,1723533041812,-500.0,0.00013698,2]
[334746342,1723533041824,-502.77850894,0.00013698,2]
[334746343,1723533041835,-500.0,0.00013698,2]
[334746344,1723533041846,-500.0,0.00013698,2]
[334746345,1723533041857,-512.12221757,0.00013698,2]
[334746346,1723533041869,-500.0,0.00013698,2]
[334746347,1723533041880,-500.0,0.00013698,2]
[334746348,1723533041890,-500.0,0.00013698,2]
[334746349,1723533041901,-500.0,0.00013698,2]
[334746350,1723533041913,-500.0,0.00013698,2]
[334746351,1723533041923,-500.0,0.00013698,2]
[334746352,1723533041934,-500.0,0.00013698,2]
[334746353,1723533041945,-500.0,0.00013698,2]
[334746354,1723533041955,-500.0,0.00013698,2]
[334746355,1723533041966,-504.58301167,0.00013698,2]
[334746356,1723533041977,-500.0,0.00013698,2]
[334746357,1723533041988,-500.0,0.00013698,2]
[334746358,1723533041999,-616.97,0.00013698,2]
[334746359,1723533042010,-579.41162,0.00013698,2]
[334746360,1723533042020,-500.0,0.00013698,2]
[334746361,1723533042031,-500.0,0.00013698,2]
[334746362,1723533042041,-500.0,0.00013698,2]
[334746363,1723533042052,-507.34383413,0.00013698,2]
[334746364,1723533042063,-438.63773056,0.00013698,2]
[334746365,1723533042073,-707.4,0.00013698,2]
[334746366,1723533042084,-500.0,0.00013698,2]
[334746367,1723533042094,-500.0,0.00013698,2]
[334746368,1723533042104,-500.0,0.00013698,2]
[334746369,1723533042116,-500.0,0.00013698,2]
[334746370,1723533042127,-828.4,0.00013698,2]
[334746371,1723533042138,-500.0,0.00013698,2]
[334746372,1723533042148,-500.0,0.00013698,2]
[334746373,1723533042160,-500.0,0.00013698,2]
[334746374,1723533042171,-1269.39,0.00013698,2]
[334746375,1723533042181,-500.0,0.00013698,2]
[334746376,1723533042192,-500.0,0.00013698,2]
[334746377,1723533042202,-500.0,0.00013698,2]
[334746378,1723533042213,-510.64760496,0.00013698,2]
[334746379,1723533042224,-151.0,0.00013698,2]
[334746380,1723533042234,-151.359644,0.00013698,2]
[334746381,1723533042245,-500.0,0.00013698,2]
[334746382,1723533042256,-500.0,0.00013698,2]
[334746383,1723533042267,-505.59683593,0.00013698,2]
[334746384,1723533042277,-500.0,0.00013698,2]
[334746385,1723533042287,-500.0,0.00013698,2]
[334746386,1723533042299,-500.0,0.00013698,2]
[334746387,1723533042309,-500.0,0.00013698,2]
[334746388,1723533042320,-500.0,0.00013698,2]
[334746389,1723533042332,-500.0,0.00013698,2]
[334746390,1723533042341,-500.0,0.00013698,2]
[334746391,1723533042350,-500.0,0.00013698,2]
[334746392,1723533042360,-500.0,0.00013698,2]
[334746393,1723533042370,-323.33109887,0.00013698,2]
[334746394,1723533042379,-532.32832869,0.00013698,2]
[334746395,1723533042388,-500.0,0.00013698,2]
[334746396,1723533042397,-504.46,0.00013698,2]
[334746397,1723533042578,-500.0,0.00013698,2]
[334746398,1723533042597,-500.0,0.00013698,2]
[334746399,1723533042608,-151.0,0.00013698,2]
[334746400,1723533042617,-500.0,0.00013698,2]
[334746401,1723533042626,-500.0,0.00013698,2]
[334746402,1723533042635,-151.0,0.00013698,2]
[334746403,1723533042645,-501.44520048,0.00013698,2]
[334746404,1723533042654,-151.0,0.00013698,2]
[334746405,1723533042664,-500.0,0.00013698,2]
[334746406,1723533042674,-151.0,0.00013698,2]
[334746407,1723533042683,-500.0,0.00013698,2]
[334746408,1723533042692,-500.0,0.00013698,2]
[334746409,1723533042704,-151.0,0.00013698,2]
[334746410,1723533042715,-500.0,0.00013698,2]
[334746411,1723533042725,-500.0,0.00013698,2]
[334746412,1723533042735,-773.77,0.00013698,2]
[334746413,1723533042745,-153.922059,0.00013698,2]
[334746414,1723533042755,-2166.45,0.00013698,2]
[334746415,1723533042765,-538.07066586,0.00013698,2]
[334746416,1723533042775,-506.75545438,0.00013698,2]
[334746417,1723533042785,-500.0,0.00013698,2]
[334746418,1723533042798,-500.0,0.00013698,2]
[334746419,1723533042807,-500.0,0.00013698,2]
[334746420,1723533042817,-500.0,0.00013698,2]
[334746421,1723533042826,-500.0,0.00013698,2]
[334746422,1723533042836,-500.0,0.00013698,2]
[334746423,1723533042846,-506.87032051,0.00013698,2]
[334746424,1723533042855,-500.0,0.00013698,2]
[334746425,1723533042864,-500.0,0.00013698,2]
[334746426,1723533042875,-500.0,0.00013698,2]
[334746427,1723533042884,-500.0,0.00013698,2]
[334746428,1723533042894,-500.0,0.00013698,2]
[334746429,1723533042905,-285.59539038,0.00013698,2]
[334746430,1723533042914,-2950.14,0.00013698,2]
[334746431,1723533042923,-545.2,0.00013698,2]
[334746432,1723533042933,-500.0,0.00013698,2]
[334746433,1723533042942,-500.0,0.00013698,2]
[334746434,1723533042952,-500.0,0.00013698,2]
[334746435,1723533042961,-285.46548247,0.00013698,2]
[334746436,1723533042971,-500.0,0.00013698,2]
[334746437,1723533042980,-500.0,0.00013698,2]
[334746438,1723533042990,-500.0,0.00013698,2]
[334746439,1723533042999,-817.65,0.00013698,2]
[334746440,1723533043009,-503.80614927,0.00013698,2]
[334746441,1723533043019,-500.0,0.00013698,2]
[334746442,1723533043028,-1525.75,0.00013698,2]
[334746443,1723533043038,-500.0,0.00013698,2]
[334746444,1723533043047,-765.45,0.00013698,2]
[334746445,1723533043057,-1096.54,0.00013698,2]
[334746446,1723533043067,-6696.03,0.00013698,2]
[334746447,1723533043076,-884.41,0.00013698,2]
[334746448,1723533043085,-151.0,0.00013698,2]
[334746449,1723533043095,-151.0,0.00013698,2]
[334746450,1723533043104,-801.68,0.00013698,2]
[334746451,1723533043114,-923.81,0.00013698,2]
[334746452,1723533043123,-151.0,0.00013698,2]
[334746453,1723533043133,-500.0,0.00013698,2]